Cogmind - Beta 10.1 @@@ ROGUE MODE // 2020.10.24 @ 14:04:16 Player: Boris Result: Destroyed by B-99 Colossus with Multirail Performance ------------- Evolutions (7) 3500 Regions Visited (24) 4800 Robots Destroyed (469) 2345 Value Destroyed (28113) 28113 Prototype IDs (39) 780 Alien Tech Used (12) 2400 Bonus (8411) 8411 TOTAL SCORE: 50349 Bonus ------- High Alert Combat Kills 3348 Follower Combat Kills 1496 Entered Garrisons 800 Used RIF Installer 2000 Network Hubs Disabled 200 Aligned with FarCom 300 Scanned by Researcher 500 Pursued by Intercept 500 Friendly Fire -733 Cogmind --------- Core Integrity 0/1300 Matter 136/425 Energy 840/840 System Corruption 26% Temperature Cool (0) Movement Treading (300) Ox7 Location -3/Section 7 Parts ------- > --- POWER (2) -------- Particle Reactor Improved Quantum Reactor > --- PROPULSION (5) --- Medium Treads Compact Wheel > --- UTILITY (11) ----- High-capacity Storage Unit High-capacity Storage Unit High-capacity Storage Unit High-capacity Storage Unit Experimental Targeting Computer Advanced Target Analyzer Centrium Medium Armor Plating Hacking Suite > --- WEAPON (3) ------- EMDS Micro-nuke Launcher > --- INVENTORY (36) --- Light Quantum Reactor Experimental Cooling System Energy Well (500) Matter Compressor (250) Improved Weapon Cycler Transmission Jammer Heavy Armor Plating Improved Focal Shield Advanced Thermal Shield Relay Coupler [Sentry] (22) Relay Coupler [Sentry] (22) Relay Coupler [Hunter] (19) Dimensional Node Initializer Transdimensional Reconstructor High-powered Transdimensional Reconstructor Core Reset Matrix Subatomic Replicator Matter Drive Heavy Neutron Cannon Core Cannon High-powered Shotgun Coil Gun Coil Gun Railgun Improved KE Penetrator Advanced Remote Datajack Core Stripper Longsword +1 Peak State ------------ > --- POWER ------------ Neutrino Core Reinforced Fission Core > --- PROPULSION ------- Armored Heavy Treads Advanced Heavy Treads Improved Antigrav System > --- UTILITY ---------- Advanced Cooling System High-capacity Storage Unit High-capacity Storage Unit High-capacity Storage Unit High-capacity Storage Unit Advanced Signal Interpreter Advanced Targeting Computer Experimental Targeting Computer Advanced Target Analyzer Phase Redirector Hacking Suite > --- WEAPON ----------- Improved KE Penetrator Core Stripper > --- INVENTORY -------- Light Particle Reactor Energy Well Matter Compressor Long-range Sensor Array Improved Weapon Cycler Transmission Jammer Cloak of Protection Improved Focal Shield Advanced Thermal Shield EM Dispersion Field Relay Coupler [Sentry] Relay Coupler [Sentry] Relay Coupler [Hunter] System Restoration Module Long-range Tractor Beam Dimensional Node Initializer Transdimensional Reconstructor High-powered Transdimensional Reconstructor Core Reset Matrix Subatomic Replicator Matter Drive Advanced Variable Charge Gun Quantum Rifle EMDS EMDS Heavy Neutron Cannon Core Cannon Improved KE Penetrator Gamma Bomb Array Micro-nuke Launcher Advanced Remote Datajack Longsword +1 [Rating: 164] Favorites ----------- Power Improved Deuterium Engine Engine Improved Deuterium Engine Power Core Neutrino Core Reactor Quantum Reactor Propulsion Light Treads Treads Light Treads Leg Flexi-carbon Leg Wheel Compact Wheel Hover Unit Improved Antigrav System Utility High-capacity Storage Unit Device Long-range Sensor Array Storage High-capacity Storage Unit Processor Advanced Signal Interpreter Hackware Relay Coupler [NC] Protection Hardened Medium Armor Plating Artifact Phase Redirector Weapon KE Penetrator Energy Gun Quantum Rifle Energy Cannon EMDS Ballistic Gun KE Penetrator Launcher Micro-nuke Launcher Special Weapon Remote Datajack Impact Weapon Core Stripper Slashing Weapon Longsword +1 Special Melee Weapon Datajack Build | -11 -10 -10 -10 -9 -8 -8 -8 -7 -7 -7 -7 -6 -6 -5 -5 -5 -4 -4 -4 -4 -4 -3 -3 -3 ------- Run | Scr Mat Min Exi Min Mat Gar Mat Fac Gar Fac Gar Fac Gar Fac Was Fac Fac Ext Cet Arc Hub Res Qua Sec Slots Evolved 14 | . . . . . 4 . . 2 . . . 2 . 2 . . 2 . . . . 2 . . Power 1 | . . . . . . . . . . . . . . . . . 1 . . . . . . . Propulsion 3 | . . . . . . . . . . . . 2 . . . . . . . . . 1 . . Utility 9 | . . . . . 3 . . 2 . . . . . 2 . . 1 . . . . 1 . . Weapon 1 | . . . . . 1 . . . . . . . . . . . . . . . . . . . Parts Attached 781 | 6 11 6 2 1 11 14 92 10 52 22 66 52 54 22 15 27 19 37 16 7 38 27 69 105 Power 28 | 1 1 1 . . 1 . 4 . 1 . 2 1 1 . . 1 2 2 1 . 1 1 1 6 Engine 12 | 1 1 1 . . . . 3 . 1 . 2 1 1 . . 1 . . . . . . . . Core 8 | . . . . . 1 . 1 . . . . . . . . . 2 2 . . . 1 1 . Reactor 8 | . . . . . . . . . . . . . . . . . . . 1 . 1 . . 6 Propulsion 66 | 2 3 2 . 1 1 2 7 2 4 2 3 5 5 2 2 1 3 3 1 . . 1 2 12 Treads 59 | 2 3 2 . 1 1 2 7 2 4 2 3 2 4 2 2 1 3 3 1 . . 1 1 10 Leg 2 | . . . . . . . . . . . . 1 1 . . . . . . . . . . . Wheel 3 | . . . . . . . . . . . . 2 . . . . . . . . . . . 1 Hover 2 | . . . . . . . . . . . . . . . . . . . . . . . 1 1 Flight . | . . . . . . . . . . . . . . . . . . . . . . . . . Utility 311 | 1 2 . 2 . 4 . 14 5 10 9 22 20 30 13 6 17 9 19 5 4 29 13 35 42 Device 174 | . . . . . . . 2 3 5 4 17 11 14 6 3 10 3 11 3 3 19 10 23 27 Storage 14 | 1 2 . 2 . 1 . 2 . . 1 . 1 . 1 1 . . 1 . . . 1 . . Processor 7 | . . . . . 1 . . 1 . . . . . 1 . . 1 . . . 1 . 1 1 Hackware 20 | . . . . . . . 3 . 2 2 2 3 5 . 1 . . . . . . . 2 . Protection 91 | . . . . . 2 . 7 1 3 2 3 5 11 5 1 7 5 7 2 1 9 2 6 12 Artifact 5 | . . . . . . . . . . . . . . . . . . . . . . . 3 2 Weapon 376 | 2 5 3 . . 5 12 67 3 37 11 39 26 18 7 7 8 5 13 9 3 8 12 31 45 Energy Gun 121 | 2 4 1 . . 1 4 33 3 18 6 27 9 . . 1 . . . 1 . . . 5 6 Energy Cannon 36 | . . . . . . . . . . . . 1 2 1 1 1 1 1 . . 2 5 8 13 Ballistic Gun 124 | . 1 2 . . 3 2 22 . 9 1 4 5 8 3 2 5 4 6 6 3 6 5 11 16 Ballistic Cannon . | . . . . . . . . . . . . . . . . . . . . . . . . . Launcher 35 | . . . . . 1 4 1 . 6 . 5 3 2 . . 1 . 2 1 . . 1 2 6 Special Weapon 23 | . . . . . . . . . 1 3 1 6 5 3 2 1 . 1 . . . . . . Impact Weapon 4 | . . . . . . . . . . . . . . . . . . . . . . . 2 2 Slashing Weapon 25 | . . . . . . 2 3 . 3 1 2 2 1 . 1 . . 3 1 . . 1 3 2 Piercing Weapon . | . . . . . . . . . . . . . . . . . . . . . . . . . Special Melee Weapon 8 | . . . . . . . 8 . . . . . . . . . . . . . . . . . Unidentified Prototypes 26 | . . . . . . . 1 . . . . . . . . . . . 4 . 6 . 6 9 Parts Lost 75 | . 1 5 . . 4 . 7 . 7 . 5 6 1 1 3 1 3 2 . . 1 1 3 24 Power 9 | . . 1 . . 1 . . . 1 . . . . . . 1 1 . . . . . 1 3 Propulsion 22 | . . 2 . . . . 2 . 1 . 1 3 1 1 1 . 1 1 . . . 1 . 7 Utility 18 | . . . . . 1 . 1 . 2 . 1 . . . 1 . 1 1 . . 1 . 1 8 Weapon 26 | . 1 2 . . 2 . 4 . 3 . 3 3 . . 1 . . . . . . . 1 6 Highest Loss Streak 5 | . 1 4 . . 2 . 3 . 5 . 2 2 1 1 3 1 2 1 . . 1 1 1 5 Average Slot Usage (%) 93 | . 96 97 100 100 95 100 99 100 99 100 99 89 97 98 97 99 95 97 93 94 91 84 85 80 Engine 4 | . 13 12 14 14 2 . 6 7 6 7 7 6 6 5 5 4 3 . . . . . . . Core 2 | . . . . . 6 9 2 . . . . . . . . . 4 10 6 5 5 4 5 2 Reactor 1 | . . . . . . . . . . . . . . . . . . . 3 5 5 4 2 6 Treads 16 | . 27 27 28 28 18 18 17 15 15 15 14 14 19 22 22 23 19 19 14 15 15 13 9 12 Device 6 | . . . . . . . . 7 7 7 7 4 3 8 8 11 12 14 11 14 11 14 10 5 Storage 22 | . 27 28 28 28 27 27 27 23 23 23 23 20 20 23 22 23 21 21 21 21 21 19 19 19 Processor 7 | . . . . . 7 9 . 7 7 7 7 6 6 5 5 5 9 10 10 10 10 14 14 10 Hackware 5 | . . . . . . . 9 7 7 7 8 12 13 11 11 8 5 1 . . . . 2 4 Protection 4 | . . . . . 8 9 7 7 6 6 5 1 1 . . 1 2 4 8 5 4 3 3 5 Energy Gun 5 | . 21 14 14 14 7 8 10 12 5 6 8 4 . . . . . . . . . . 2 1 Ballistic Gun 11 | . 4 14 14 14 17 18 15 10 14 14 12 12 17 15 5 13 14 13 13 15 14 5 5 2 Naked Turns . | . . . . . . . . . . . . . . . . . . . . . . . . . Heaviest Build 226 | 13 41 41 73 73 117 117 126 128 139 133 135 129 131 160 158 169 176 196 195 194 226 207 209 221 Greatest Support 177 | 40 40 40 40 40 40 40 42 40 40 40 40 60 88 94 108 108 108 124 134 134 134 177 150 144 Greatest Overweight (x) 7 | . 1 1 1 1 2 2 6 3 6 3 5 7 7 2 1 1 2 2 3 1 1 1 1 3 Average Overweight (x) 1 | . . . 1 1 2 2 2 3 2 3 2 2 1 1 1 1 1 1 1 1 1 1 1 1 Largest Inventory Capacity 36 | 6 16 16 20 20 28 28 28 28 28 28 28 28 28 36 36 36 36 36 36 36 36 36 36 36 Average Capacity 30 | 5 15 16 16 20 28 28 28 28 28 28 28 28 28 35 35 36 36 36 36 36 36 36 36 36 Most Carried 36 | 2 13 13 17 20 22 28 28 28 28 28 28 28 28 36 36 36 36 36 36 36 36 36 36 36 Average Carried 29 | 1 9 11 15 16 19 24 27 26 27 27 27 27 27 32 32 35 35 35 35 35 35 32 35 34 Final Capacity 36 | 6 16 16 20 20 28 28 28 28 28 28 28 28 28 36 36 36 36 36 36 36 36 36 36 36 Final Carried 36 | 2 13 12 16 20 22 28 28 28 28 28 28 28 28 36 36 36 35 36 36 36 36 35 36 32 Class Distribution -------------------- 18% | Bothacker-Mutant 15% | Bothacker-Skirmisher 13% | Scavenger-Mutant 12% | Hauler-Skirmisher 8% | Hauler-Mutant 8% | Mutant 5% | Bothacker-Tank 5% | Bothacker-Gunner 4% | Scavenger-Gunner Dominant Class ---------------- Mutant | -10/Materials Mutant | -10/Mines Mutant | -10/Exiles Hauler-Mutant | -9/Mines Hauler-Skirmisher | -8/Materials Hauler-Skirmisher | -8/Garrison Hauler-Skirmisher | -8/Materials Hauler-Skirmisher | -7/Factory Bothacker-Mutant | -7/Garrison Bothacker-Mutant | -7/Factory Bothacker-Mutant | -7/Garrison Bothacker-Skirmisher | -6/Factory Bothacker-Mutant | -6/Garrison Botlord-Skirmisher | -5/Factory Bothacker-Mutant | -5/Waste Bothacker-Skirmisher | -5/Factory Bothacker-Gunner | -4/Factory Bothacker-Skirmisher | -4/Extension Bothacker-Tank | -4/Cetus Bothacker-Gunner | -4/Archives Bothacker-Gunner | -4/Hub_04(d) Bothacker-Mutant | -3/Research Scavenger-Mutant | -3/Quarantine Scavenger-Mutant | -3/Section 7 Resources | -11 -10 -10 -10 -9 -8 -8 -8 -7 -7 -7 -7 -6 -6 -5 -5 -5 -4 -4 -4 -4 -4 -3 -3 -3 ----------- Run | Scr Mat Min Exi Min Mat Gar Mat Fac Gar Fac Gar Fac Gar Fac Was Fac Fac Ext Cet Arc Hub Res Qua Sec Matter Collected 18959 | 260 270 99 . 6 210 361 1244 120 820 227 1097 1210 1173 650 233 1180 677 1097 273 227 1166 840 1458 4061 Remotely 2478 | . . . . . . . . . . . . . . . . . 233 225 . . 913 158 249 700 Salvage Created 25796 | 158 562 263 . . 350 343 1797 150 1096 122 1153 1579 527 378 569 1436 1144 1187 . 467 2112 1170 2683 6550 Parts 1113 | 6 24 16 . . 31 17 75 9 46 7 51 51 18 20 4 75 55 51 . 17 108 63 110 259 Haulers Intercepted 11 | . 2 . . . . . 3 . . . . 3 . . . 1 . . . . 1 . . 1 Recyclers Shooed 13 | . 1 . . . 1 . . . . . . 5 . . . 4 . . . . . 1 1 . Parts Field Recycled . | . . . . . . . . . . . . . . . . . . . . . . . . . Retrieved Matter . | . . . . . . . . . . . . . . . . . . . . . . . . . Parts Self-Destructed . | . . . . . . . . . . . . . . . . . . . . . . . . . Prevented . | . . . . . . . . . . . . . . . . . . . . . . . . . Kills | -11 -10 -10 -10 -9 -8 -8 -8 -7 -7 -7 -7 -6 -6 -5 -5 -5 -4 -4 -4 -4 -4 -3 -3 -3 ------- Run | Scr Mat Min Exi Min Mat Gar Mat Fac Gar Fac Gar Fac Gar Fac Was Fac Fac Ext Cet Arc Hub Res Qua Sec Combat Hostiles Destroyed 384 | . 11 7 . . 12 13 32 2 21 2 22 14 9 6 2 24 16 18 . 1 24 17 34 97 Melee 8 | . . . . . . . 2 . 2 . 1 . . . . . . . . . . 2 1 . Guns 218 | . 9 7 . . 7 9 24 1 10 1 16 10 9 6 . 18 14 12 . 1 22 4 21 17 Cannons 34 | . . . . . . . . . . . . . . . 2 1 . 2 . . . 3 . 26 AOE 53 | . 2 . . . 5 4 2 . 6 . 3 2 . . . 4 . 3 . . . 3 2 17 Classes Destroyed 24 | 3 4 2 . . 2 2 1 . 1 . 1 . . . 1 . . 1 . 1 1 . 1 3 Worker 21 | 2 1 . . . . . . . . . . 5 . 1 . 2 . . . . 5 3 1 1 Builder 20 | . 1 2 . . . . . . . . . 1 . 2 . 5 1 2 . . 1 . . 5 Tunneler 2 | 1 . . . . . . 1 . . . . . . . . . . . . . . . . . Hauler 11 | . 2 . . . . . 3 . . . . 3 . . . 1 . . . . 1 . . 1 Recycler 7 | 1 . . . . . . . . . . . 3 . . . . . . . . 1 . . 2 Operator 8 | . . . . . . . . . . . . . . . . . . . . 4 . 2 . 2 Watcher 11 | . . . . . 1 . . . . . . . . . . 2 . 1 . . . 1 3 3 Swarmer 47 | . 3 . . . 7 3 . . 3 . 4 . . . . 5 . 5 . . . 3 . 14 Saboteur 2 | . . . . . . . . . . . . . . . . . . . . . . . . 2 Grunt 170 | . 8 4 . . 4 7 20 . 11 . 14 6 4 3 . 12 9 7 . . 4 4 19 34 Brawler 7 | . . . . . . 1 . . 2 . . 1 . . . . . . . . 1 . 1 1 Duelist 10 | . . . . . . . 1 . . . . 1 . . . . . . . . 1 . 2 5 Protector 3 | . . . . . . . . . . . . . . . . . . . . . 2 . . 1 Researcher 1 | . . . . . . . . . . . . . . . . . . . . . . . . 1 Sentry 46 | . . . . . 1 1 9 2 4 1 2 1 4 1 . 1 1 5 . 1 1 3 . 8 Demolisher 1 | . . 1 . . . . . . . . . . . . . . . . . . . . . . Specialist 4 | . . . . . . . . . . . 3 . 1 . . . . . . . . . . . Hunter 30 | . . . . . . 1 2 . . . . 2 . 1 . 3 2 . . . 4 . 2 13 Programmer 45 | . . . . . . . . . 1 1 . 3 . 1 . 3 4 . . . 5 6 9 12 Behemoth 3 | . . . . . . . . . . . . . . . . . . 1 . . . 1 . 1 Compactor 2 | . . . . . . . . . . . . . . . 2 . . . . . . . . . S7 Guard 2 | . . . . . . . . . . . . . . . . . . . . . . . . 2 Lightning 6 | . . . . . . . . . . . . . . . . . . . . . 6 . . . Tracker 1 | . . . . . . . . . . . . . . . . . . . . . . . . 1 Combat Programmer 1 | . . . . . . . . . . . . . . . . . . . . . . . . 1 Alpha 7 2 | . . . . . . . . . . . . . . . . . . . . . . . . 2 Fortress 1 | . . . . . . . . . . . . . . . . . . . . . . . 1 . Assembled 2 | . . 2 . . . . . . . . . . . . . . . . . . . . . . Savage 1 | . . . . . . . . . . . . . . . . . . . . 1 . . . . Guerrilla 2 | . . . . . . . . . . . . . . . . . . . . 2 . . . . Best Kill Streak 22 | 2 5 3 . . 7 4 3 2 7 1 6 4 3 2 1 7 6 5 . 3 8 6 6 22 Combat Bots Only 17 | . 5 3 . . 6 4 3 2 7 1 6 4 3 2 1 6 6 5 . 1 7 3 5 17 Max Kills in Single Turn 5 | 2 2 2 . . 3 2 2 1 3 1 1 1 1 2 1 3 2 3 . 1 2 5 2 4 Gunslinging 1 | . 1 1 . . . . . . . . . . . . . 1 1 1 . . . . . . Exploded 3 | . 1 . . . 3 2 1 . 3 . 1 1 . . . 3 . 3 . . . 3 2 3 Melee 1 | . . . . . . . 1 . 1 . 1 . . . . . . . . . . 1 1 . Uniques/NPCs Destroyed . | . . . . . . . . . . . . . . . . . . . . . . . . . Combat | -11 -10 -10 -10 -9 -8 -8 -8 -7 -7 -7 -7 -6 -6 -5 -5 -5 -4 -4 -4 -4 -4 -3 -3 -3 -------- Run | Scr Mat Min Exi Min Mat Gar Mat Fac Gar Fac Gar Fac Gar Fac Was Fac Fac Ext Cet Arc Hub Res Qua Sec Damage Taken 30859 | . 429 797 . . 481 205 2168 309 1636 328 1426 1255 922 524 54 1309 1465 1044 413 52 1959 713 2076 11294 Core 2528 | . 59 174 . . 44 . 162 10 180 47 203 99 147 20 . 136 111 117 43 . 73 28 267 608 Absorbed by Shields . | . . . . . . . . . . . . . . . . . . . . . . . . . Reduced by Siege Mode 64 | . . . . . . . . . . . . . . . . . . . 7 . 32 8 . 17 Redirected to Core 45 | . . . . . . . . . . . . . . . . . . . . . . . 45 . Core Remaining (%) 61 | 100 . . . 6 . . 62 . . . 37 . 71 . . 84 . . . . 70 . . . Volleys Fired 1452 | 8 40 33 . 1 22 35 112 5 67 20 77 85 61 34 100 70 50 85 7 15 80 51 81 313 Largest 3 | 2 2 2 . 1 3 3 3 3 3 3 3 3 3 3 3 3 3 3 3 3 3 3 3 3 Hottest 310 | 80 80 70 . 50 96 96 165 150 150 136 162 136 150 150 90 99 99 99 99 99 105 105 310 300 Shots Fired 2669 | 16 64 65 . 1 57 69 285 15 107 28 128 157 128 78 102 148 134 179 21 44 209 80 164 390 Gun 2072 | 16 64 65 . 1 54 55 284 15 75 14 99 138 112 64 13 130 126 142 21 44 198 45 127 170 Cannon 399 | . . . . . . . . . . . . . 3 4 77 9 8 19 . . 11 33 31 204 Launcher 109 | . . . . . 3 14 1 . 26 . 27 7 1 . . 2 . 4 . . . 2 6 16 Special 89 | . . . . . . . . . 6 14 2 12 12 10 12 7 . 14 . . . . . . Kinetic 1557 | . 11 32 . . 42 36 153 . 37 4 46 100 112 64 6 130 126 142 21 44 198 45 86 122 Thermal 423 | . 11 33 . 1 12 19 70 . 16 2 39 38 3 4 84 . . . . . . . 41 50 Explosive 48 | . . . . . 3 14 1 . 7 . . . 1 . . 2 . 4 . . . 2 2 12 Electromagnetic 552 | 16 42 . . . . . 61 15 41 8 41 7 . . . 9 8 19 . . 11 33 35 206 Robot Hit Streak 57 | 4 19 24 . 2 19 17 15 15 10 10 9 28 27 16 24 8 41 20 7 8 41 43 38 57 Robot Miss Streak 9 | 2 4 6 . . 1 2 4 3 3 9 4 8 4 4 1 4 2 2 2 3 3 1 1 4 Penetration Max 1 | . . . . . . . . . . . . 1 . 1 . 1 1 1 . . 1 1 1 1 Secondary Targets 36 | . 1 1 . . . 1 1 . 2 . 2 2 . . . 4 3 5 . . 6 . 3 5 Max Gunslinging Chain 1 | . 1 1 . . . 1 1 . 1 . 1 1 . . . 1 1 1 . . 1 . 1 1 Shots Hit Robots 2011 | 9 46 43 . 1 40 37 211 14 84 24 83 124 85 50 91 86 102 133 12 29 156 74 149 328 Core Hits 972 | 4 24 18 . 1 27 31 79 8 59 7 72 81 23 19 7 55 39 46 4 18 80 32 75 163 Critical Hits 160 | . . 1 . . . . 1 . 1 . . 1 . 1 4 15 6 16 2 2 30 11 15 54 Critical Kills 54 | . . 1 . . . . . . 1 . . . . . . 4 2 3 . 1 15 3 8 16 Critical Parts Destroyed 91 | . . . . . . . . . . . . 1 . . 1 11 4 9 2 1 15 8 6 33 Melee Attacks 145 | . . . . . . 5 22 . 28 1 4 3 . . 3 . . 27 5 . . 11 30 6 Kinetic 3 | . . . . . . . . . . . . . . . . . . . . . . . 2 1 Impact . | . . . . . . . . . . . . . . . . . . . . . . . . . Slashing 128 | . . . . . . 5 8 . 28 1 4 3 . . 3 . . 27 5 . . 11 28 5 Piercing . | . . . . . . . . . . . . . . . . . . . . . . . . . Sneak Attacks 9 | . . . . . . . 6 . . . . . . . 3 . . . . . . . . . Combat Hostiles 4 | . . . . . . . 1 . . . . . . . 3 . . . . . . . . . Follow-up Attacks . | . . . . . . . . . . . . . . . . . . . . . . . . . Damage Inflicted 63271 | 165 794 503 . 59 666 1211 3256 266 2345 231 1904 3120 1616 1273 2675 3850 2646 3580 266 865 4855 3604 6489 17032 Guns 34893 | 97 573 485 . 13 368 386 2721 266 861 189 1102 2739 1558 1071 308 2730 2425 2635 266 657 4355 1052 3578 4458 Cannons 14366 | . . . . . . . . . . . . . 58 61 2165 251 221 479 . . 291 1268 1212 8360 Explosions 10308 | 68 177 . . . 281 818 142 . 1054 . 694 344 . . . 806 . 428 . . 145 746 631 3974 Melee 2755 | . . . . . . . 271 . 430 42 108 . . . 202 . . . . . . 510 1045 147 Ramming 949 | . 44 18 . 46 17 7 122 . . . . 37 . 141 . 63 . 38 . 208 64 28 23 93 Kinetic 26571 | . 38 195 . . 255 192 1087 . 283 21 549 1711 1558 1071 126 2730 2425 2635 266 657 4355 1052 2233 3132 Thermal 9403 | 68 293 290 . 13 113 194 814 . 242 40 477 1028 58 61 2347 88 . . . . . . 1378 1899 Explosive 7131 | . . . . . 281 818 110 . 268 . . . . . . 718 . 428 . . . 746 341 3421 Electromagnetic 16495 | 97 419 . . . . . 852 266 1122 128 770 344 . . . 251 221 479 . . 436 1268 1502 8340 Impact . | . . . . . . . . . . . . . . . . . . . . . . . . . Slashing 2722 | . . . . . . . 271 . 430 42 108 . . . 202 . . . . . . 510 1012 147 Piercing . | . . . . . . . . . . . . . . . . . . . . . . . . . Highest Corruption 40 | . . . . . . . . . . . . 7 7 . 38 40 2 3 3 3 8 6 7 26 Average Corruption 9 | . . . . . . . . . . . . 2 7 . 21 39 1 2 3 2 5 3 3 12 Corruption Purged 15 | . . . . . . . . . . . . . . . . . . . . 3 . . 8 4 Effects 627 | . . . . . . . . . . . . 1 72 . 57 152 2 20 4 19 31 15 14 240 Message Errors 77 | . . . . . . . . . . . . . 14 . 4 8 . 6 . 9 3 3 5 25 Matter Fused 88 | . . . . . . . . . . . . . 9 . 8 9 . 1 2 1 2 3 3 50 Heat Flow Errors 45 | . . . . . . . . . . . . . 8 . 3 6 1 2 2 2 1 1 2 17 Energy Discharges 35 | . . . . . . . . . . . . . 6 . 2 5 . 3 . 2 4 2 2 9 Parts Rejected 8 | . . . . . . . . . . . . . 1 . . 1 . . . . . . . 6 Data Loss (minor) 55 | . . . . . . . . . . . . . 14 . 1 7 1 3 . 3 4 1 2 19 Data Loss (major) 10 | . . . . . . . . . . . . . 1 . 1 4 . . . . . . . 4 Misfires 15 | . . . . . . . . . . . . . 2 . 2 3 . . . . . . . 8 Alerts 9 | . . . . . . . . . . . . . . . . 4 . . . . . . . 5 Misdirections 44 | . . . . . . . . . . . . . . . 6 20 . . . . . . . 18 Targeting Errors 197 | . . . . . . . . . . . . 1 16 . 26 68 . 5 . 1 14 4 . 62 Weapon Failures 44 | . . . . . . . . . . . . . 1 . 4 17 . . . 1 3 1 . 17 Overload Shots 7 | . . . . . . . . . . . . . . . . . . . . . . . 7 . Overflow Damage 808 | . 4 . . . . 15 25 . . 20 11 . . 33 . 4 . 36 . 16 . 72 234 338 Projectiles 186 | . . . . . . . . . . . . . . 1 . 2 . . . . . . 79 104 Explosions 380 | . 4 . . . . 15 4 . . . 11 . . . . 2 . 36 . . . 71 26 211 Melee 242 | . . . . . . . 21 . . 20 . . . 32 . . . . . 16 . 1 129 23 Knockbacks 6 | . . . . . . . . . . . . . . . . 2 . 1 . . . 1 1 1 Impact 6 | . . . . . . . . . . . . . . . . 2 . 1 . . . 1 1 1 Kinetic . | . . . . . . . . . . . . . . . . . . . . . . . . . Secondary . | . . . . . . . . . . . . . . . . . . . . . . . . . Self-Inflicted Damage 126 | . 60 . . . . . . . 9 . 1 21 . . . . . . . . 9 . 7 19 Shots 12 | . 2 . . . . . . . 1 . 1 2 . . . . . . . . 1 . 1 4 Rammed 83 | . 7 3 . 5 3 1 9 . . . . 3 . 9 . 4 . 3 . 22 4 3 2 5 Targets Rammed 92 | . 9 5 . 5 3 1 9 . . . . 3 . 10 . 5 . 3 . 25 4 3 2 5 Kicked . | . . . . . . . . . . . . . . . . . . . . . . . . . Crushed 9 | . 2 2 . . . . . . . . . . . 1 . 1 . . . 3 . . . . Highest Temperature 422 | 90 210 68 . 10 259 183 422 204 238 216 206 194 226 321 235 367 199 416 86 211 223 144 137 347 Average Temperature 88 | 37 58 21 . 7 101 49 114 64 80 73 67 52 50 85 61 106 81 94 33 68 88 25 54 135 Received Heat Transfer 5190 | . 168 84 . . 234 63 813 96 600 120 477 291 273 90 . 126 258 192 45 9 81 63 375 732 Effects 12 | . . . . . . . 3 . . . . . . . . 1 . . . . . . . 8 Shutdowns 3 | . . . . . . . 1 . . . . . . . . 1 . . . . . . . 1 Interference 3 | . . . . . . . . . . . . . . . . . . . . . . . . 3 Matter Decay 2 | . . . . . . . . . . . . . . . . . . . . . . . . 2 Short Circuit 1 | . . . . . . . 1 . . . . . . . . . . . . . . . . . Damage (minor) 3 | . . . . . . . 1 . . . . . . . . . . . . . . . . 2 Siege Activations 6 | . . . . . . . . . . . . . . . . . . . 1 . 3 1 . 1 Total Turns 183 | . . . . . . . . . . . . . . . . . . . 7 . 135 9 . 32 Longest Duration 114 | . . . . . . . . . . . . . . . . . . . 7 . 114 9 . 32 Robots Corrupted 67 | . . . . . . . 2 1 3 1 2 2 . . . 1 2 1 . . 2 5 9 36 Combat Hostiles 66 | . . . . . . . 2 1 3 1 2 2 . . . 1 2 1 . . 2 5 9 35 Parts Fried 156 | . 3 . . . . . 11 1 7 1 9 4 . . . 1 1 4 . 1 2 22 8 81 Impact Corruptions 8 | . . . . . . . 2 . . . . . . 1 . . . . . 2 . . . 3 Robots Melted 3 | . . . . . . . 2 . . . . . . . . . . . . . . . . 1 Combat Hostiles 3 | . . . . . . . 2 . . . . . . . . . . . . . . . . 1 Parts Melted 24 | 1 . 1 . . . . 4 . 1 . 2 4 . 1 . . . . . . . 2 1 7 Heat Transferred 14442 | 100 533 851 . 37 333 481 2011 . 547 75 943 2233 74 74 2886 100 . . . . . . 1484 1680 Parts Sabotaged . | . . . . . . . . . . . . . . . . . . . . . . . . . Parts Stolen . | . . . . . . . . . . . . . . . . . . . . . . . . . Parts Stripped . | . . . . . . . . . . . . . . . . . . . . . . . . . Power Chain Reactions 8 | 1 3 . . . . . 1 . . . 1 . . . . 1 . . . . . . . 1 Missiles Intercepted . | . . . . . . . . . . . . . . . . . . . . . . . . . Alert | -11 -10 -10 -10 -9 -8 -8 -8 -7 -7 -7 -7 -6 -6 -5 -5 -5 -4 -4 -4 -4 -4 -3 -3 -3 ------- Run | Scr Mat Min Exi Min Mat Gar Mat Fac Gar Fac Gar Fac Gar Fac Was Fac Fac Ext Cet Arc Hub Res Qua Sec Peak Influence 1628 | 20 224 90 . 15 255 579 417 109 764 416 664 366 407 222 22 392 429 283 270 214 639 489 428 1628 Initial 401 | . 13 5 . . . 66 282 29 76 401 . 348 98 213 10 . 174 157 142 48 . 275 120 225 Average 247 | 8 89 32 . 2 74 291 174 52 553 102 380 168 236 78 11 126 258 156 196 63 209 310 184 567 Maximum Alert Level 5 | . 1 . . . 1 2 2 . 3 2 2 1 2 1 . 1 2 1 1 1 2 2 2 5 Low Security (%) 52 | 100 82 100 . 100 87 35 57 100 10 84 28 70 24 78 100 64 28 74 48 89 57 4 62 17 Level 1 29 | . 17 . . . 12 32 36 . 4 . 15 29 72 21 . 35 71 25 51 10 12 81 29 47 Level 2 11 | . . . . . . 32 5 . 43 15 55 . 2 . . . . . . . 29 13 8 5 Level 3 3 | . . . . . . . . . 41 . . . . . . . . . . . . . . 8 Level 4 2 | . . . . . . . . . . . . . . . . . . . . . . . . 17 Level 5 . | . . . . . . . . . . . . . . . . . . . . . . . . 3 High Security . | . . . . . . . . . . . . . . . . . . . . . . . . . Max Security . | . . . . . . . . . . . . . . . . . . . . . . . . . Squads Dispatched 83 | . 3 . . . 4 . 6 1 . 2 . 8 . 4 . 4 7 3 . . 6 2 7 26 Investigation 16 | . 3 . . . . . 2 . . 1 . 4 . . . . 1 3 . . . . 1 1 Extermination 21 | . . . . . . . . . . 1 . 2 . . . 1 2 . . . 2 2 4 7 Reinforcement 29 | . . . . . 2 . 4 . . . . 2 . 4 . 3 2 . . . 2 . 2 8 Assault 5 | . . . . . . . . . . . . . . . . . . . . . . . . 5 Garrison 7 | . . . . . 2 . . 1 . . . . . . . . 2 . . . 2 . . . Intercept 5 | . . . . . . . . . . . . . . . . . . . . . . . . 5 Construction Impeded 12 | . . . . . 1 . 1 . . . . 1 . 1 . 2 1 . . . 1 . . 4 Haulers Reinforced 5 | . . . . . . . . . . . . 1 . 1 . 1 1 . . . . . . 1 Stealth | -11 -10 -10 -10 -9 -8 -8 -8 -7 -7 -7 -7 -6 -6 -5 -5 -5 -4 -4 -4 -4 -4 -3 -3 -3 --------- Run | Scr Mat Min Exi Min Mat Gar Mat Fac Gar Fac Gar Fac Gar Fac Was Fac Fac Ext Cet Arc Hub Res Qua Sec Distress Signals 21 | . 1 . . . 2 . 3 . . 1 . . . . . 3 1 . 1 . 3 . 1 5 Communications Jammed . | . . . . . . . . . . . . . . . . . . . . . . . . . Distress Signals . | . . . . . . . . . . . . . . . . . . . . . . . . . Times Spotted 605 | . 20 13 . 1 18 14 61 2 28 9 30 24 22 11 6 35 23 35 13 14 28 16 43 139 Peak Tracking Total 12 | . 5 3 . 2 4 4 4 1 7 3 7 5 4 5 3 6 4 5 5 1 11 4 6 12 Tactical Retreats 40 | . . 1 . . 1 3 5 . 2 1 2 1 4 . . 1 . 1 . . . 2 4 12 Traps | -11 -10 -10 -10 -9 -8 -8 -8 -7 -7 -7 -7 -6 -6 -5 -5 -5 -4 -4 -4 -4 -4 -3 -3 -3 ------- Run | Scr Mat Min Exi Min Mat Gar Mat Fac Gar Fac Gar Fac Gar Fac Was Fac Fac Ext Cet Arc Hub Res Qua Sec Traps Triggered 42 | . 3 . . . . 3 . . 9 . 7 9 3 1 . 1 . 2 . . 1 . 2 1 Indirectly . | . . . . . . . . . . . . . . . . . . . . . . . . . Trap Hack Attempts . | . . . . . . . . . . . . . . . . . . . . . . . . . Triggered . | . . . . . . . . . . . . . . . . . . . . . . . . . Disarmed . | . . . . . . . . . . . . . . . . . . . . . . . . . Reprogrammed . | . . . . . . . . . . . . . . . . . . . . . . . . . Reused . | . . . . . . . . . . . . . . . . . . . . . . . . . Traps Extracted . | . . . . . . . . . . . . . . . . . . . . . . . . . Installed . | . . . . . . . . . . . . . . . . . . . . . . . . . Triggered 2 | . 1 . . . . . . . . . . . . . . . . . . . . . . 1 Exploded 1 | . . . . . . . 1 . . . . . . . . . . . . . . . . . Machines | -11 -10 -10 -10 -9 -8 -8 -8 -7 -7 -7 -7 -6 -6 -5 -5 -5 -4 -4 -4 -4 -4 -3 -3 -3 ---------- Run | Scr Mat Min Exi Min Mat Gar Mat Fac Gar Fac Gar Fac Gar Fac Was Fac Fac Ext Cet Arc Hub Res Qua Sec Machines Disabled 82 | . . . . . . 4 1 . 7 . 12 3 7 . . 1 2 4 1 4 6 1 10 19 Max in Single Turn 5 | . . . . . . 2 1 . 2 . 2 1 2 . . 1 1 1 1 1 5 1 2 2 Garrison Access 2 | . . . . . . . . . . . . . . . . . 1 . . . . . . 1 Garrison Relay 11 | . . . . . . 1 . . 3 . 4 . 3 . . . . . . . . . . . Phase Generator 3 | . . . . . . . . . 1 . 1 . 1 . . . . . . . . . . . Network Hub 1 | . . . . . . . . . . . . . . . . . . . . . 1 . . . Machines Sabotaged . | . . . . . . . . . . . . . . . . . . . . . . . . . Garrisons Compromised . | . . . . . . . . . . . . . . . . . . . . . . . . . Overloaded Fab Kills . | . . . . . . . . . . . . . . . . . . . . . . . . . Fab Network Shutdowns . | . . . . . . . . . . . . . . . . . . . . . . . . . Hacking | -11 -10 -10 -10 -9 -8 -8 -8 -7 -7 -7 -7 -6 -6 -5 -5 -5 -4 -4 -4 -4 -4 -3 -3 -3 --------- Run | Scr Mat Min Exi Min Mat Gar Mat Fac Gar Fac Gar Fac Gar Fac Was Fac Fac Ext Cet Arc Hub Res Qua Sec Machines Accessed 94 | . 5 . 1 . 2 . 11 1 . 3 . 10 . 5 . 1 4 14 5 . . 4 16 12 Terminals 61 | . 3 . . . 1 . 7 . . 1 . 4 . 2 . 1 3 13 5 . . 3 11 7 Fabricators 5 | . . . . . . . . . . 1 . 3 . 1 . . . . . . . . . . Repair Stations 10 | . 1 . . . . . 2 . . . . 1 . 1 . . . 1 . . . . 2 2 Recycling Units 3 | . 1 . . . . . 1 . . . . . . 1 . . . . . . . . . . Scanalyzers 8 | . . . . . . . 1 . . . . 1 . . . . . . . . . 1 3 2 Garrison Access 6 | . . . . . 1 . . 1 . 1 . 1 . . . . 1 . . . . . . 1 Total Hacks 238 | . 22 . 1 . 4 . 38 1 . 8 . 29 . 10 . 1 7 38 11 . . 6 29 33 Successful 121 | . 14 . 1 . 2 . 21 1 . 5 . 17 . 5 . . 4 17 5 . . 1 14 14 Failed 115 | . 7 . . . 2 . 17 . . 3 . 12 . 5 . 1 3 20 6 . . 5 15 19 Catastrophic 25 | . . . . . . . 4 . . . . 3 . 2 . . 2 . 3 . . 2 6 3 Database Lockouts 2 | . 1 . . . . . . . . . . . . . . . . 1 . . . . . . Manual 94 | . 13 . 1 . 3 . 20 . . 4 . 4 . 2 . . 2 16 10 . . 1 9 9 Terminals 152 | . 15 . . . 3 . 23 . . 2 . 8 . 5 . 1 6 35 11 . . 5 19 19 Fabricators 13 | . . . . . . . . . . 3 . 8 . 2 . . . . . . . . . . Repair Stations 26 | . 4 . . . . . 6 . . . . 1 . 2 . . . 3 . . . . 6 4 Recycling Units 6 | . 3 . . . . . 2 . . . . . . 1 . . . . . . . . . . Scanalyzers 30 | . . . . . . . 7 . . . . 9 . . . . . . . . . 1 4 9 Garrison Access 10 | . . . . . 1 . . 1 . 3 . 3 . . . . 1 . . . . . . 1 Terminal Hacks 54 | . 6 . 1 . . . 6 . . 2 . 4 . 2 . . 2 12 4 . . 1 7 7 Record 6 | . . . . . . . . . . . . . . . . . 1 1 . . . . 4 . Part Schematic 4 | . . . . . . . . . . . . 2 . 1 . . . . . . . . . 1 Robot Analysis 5 | . 2 . . . . . . . . . . . . . . . . 1 2 . . . . . Open Door 9 | . . . . . . . . . . . . . . . . . 1 6 . . . 1 . 1 Level Access Points 1 | . . . . . . . . . . . . . . . . . . . . . . . . 1 Branch Access Points 2 | . 1 . . . . . . . . . . . . . . . . . . . . . 1 . Garrison Index 2 | . . . . . . . . . . . . 1 . . . . . . . . . . . 1 Alert Level 1 | . 1 . . . . . . . . . . . . . . . . . . . . . . . Unreport Threat 10 | . 1 . . . . . 3 . . 2 . . . 1 . . . . 2 . . . . 1 Locate Traps 5 | . 1 . . . . . . . . . . 1 . . . . . 3 . . . . . . Recall Investigation 1 | . . . . . . . 1 . . . . . . . . . . . . . . . . . Recall Reinforcements 1 | . . . . . . . . . . . . . . . . . . . . . . . 1 . Recall Assault 1 | . . . . . . . . . . . . . . . . . . . . . . . . 1 Hauler Manifests 4 | . . . . . . . 2 . . . . . . . . . . 1 . . . . 1 . Registered Components 1 | . . . . . . . . . . . . . . . . . . . . . . . . 1 EX-Prototype ID Bank 1 | . . . 1 . . . . . . . . . . . . . . . . . . . . . Fabricator Hacks 5 | . . . . . . . . . . 1 . 3 . 1 . . . . . . . . . . Load Schematic 3 | . . . . . . . . . . . . 2 . 1 . . . . . . . . . . Build 2 | . . . . . . . . . . 1 . 1 . . . . . . . . . . . . Repair Station Hacks 11 | . 4 . . . . . 4 . . . . . . . . . . 1 . . . . 1 1 Scan Component 7 | . 2 . . . . . 2 . . . . . . . . . . 1 . . . . 1 1 Repair 4 | . 2 . . . . . 2 . . . . . . . . . . . . . . . . . Recycling Unit Hacks 2 | . 1 . . . . . 1 . . . . . . . . . . . . . . . . . Retrieve Components 2 | . 1 . . . . . 1 . . . . . . . . . . . . . . . . . Scanalyzer 19 | . . . . . . . 5 . . . . 8 . . . . . . . . . . 3 3 Insert Component 12 | . . . . . . . 2 . . . . 4 . . . . . . . . . . 3 3 Analyze 7 | . . . . . . . 3 . . . . 4 . . . . . . . . . . . . Garrison Access Hacks 6 | . . . . . 1 . . 1 . 1 . 1 . . . . 1 . . . . . . 1 Unlock Access 4 | . . . . . 1 . . 1 . 1 . 1 . . . . . . . . . . . . Seal Access 2 | . . . . . . . . . . . . . . . . . 1 . . . . . . 1 Unauthorized Hacks 24 | . 3 . . . 1 . 5 . . 1 . 1 . 2 . . 1 4 1 . . . 3 2 Terminals 20 | . 2 . . . 1 . 5 . . . . . . 1 . . 1 4 1 . . . 3 2 Track 1 | . 1 . . . . . . . . . . . . . . . . . . . . . . . Assimilate 2 | . . . . . . . . . . . . . . . . . . . . . . . 2 . Botnet 16 | . 1 . . . 1 . 5 . . . . . . . . . 1 4 1 . . . 1 2 Disrupt 1 | . . . . . . . . . . . . . . 1 . . . . . . . . . . Fabricators 1 | . . . . . . . . . . 1 . . . . . . . . . . . . . . Prioritize 1 | . . . . . . . . . . 1 . . . . . . . . . . . . . . Repair Stations 2 | . . . . . . . . . . . . 1 . 1 . . . . . . . . . . Mechanics 2 | . . . . . . . . . . . . 1 . 1 . . . . . . . . . . Recycling Units 1 | . 1 . . . . . . . . . . . . . . . . . . . . . . . Tunnel 1 | . 1 . . . . . . . . . . . . . . . . . . . . . . . Scanalyzers . | . . . . . . . . . . . . . . . . . . . . . . . . . Garrison Access . | . . . . . . . . . . . . . . . . . . . . . . . . . Data Cores Recovered 3 | . . . . . . . . . . . . . . . . . . . . . . 2 . 1 Used 2 | . . . . . . . . . . . . . . . . . . . . . . 2 . . Hacking Detections 76 | . 4 . . . 2 . 10 1 . 2 . 8 . 5 . 1 3 12 5 . . 3 9 11 Full Trace Events 12 | . 1 . . . . . 2 . . 1 . 3 . . . . 1 3 . . . . . 1 Feedback Events 1 | . . . . . . . . . . . . . . . . . . 1 . . . . . . Corruption 1 | . . . . . . . . . . . . . . . . . . 1 . . . . . . Feedback Blocked . | . . . . . . . . . . . . . . . . . . . . . . . . . Robot Schematics Acquired . | . . . . . . . . . . . . . . . . . . . . . . . . . Robots Built . | . . . . . . . . . . . . . . . . . . . . . . . . . Matter . | . . . . . . . . . . . . . . . . . . . . . . . . . Time . | . . . . . . . . . . . . . . . . . . . . . . . . . Total Robot Build Rating . | . . . . . . . . . . . . . . . . . . . . . . . . . Part Schematics Acquired 10 | . . . . . . . 2 . . . . 6 . 1 . . . . . . . . . 1 Parts Built 3 | . . . . . . . . . . 2 . 1 . . . . . . . . . . . . Matter 468 | . . . . . . . . . . 234 . 234 . . . . . . . . . . . . Time 175 | . . . . . . . . . . 117 . 58 . . . . . . . . . . . . Total Part Build Rating 21 | . . . . . . . . . . 14 . 7 . . . . . . . . . . . . Parts Repaired 4 | . 2 . . . . . 2 . . . . . . . . . . . . . . . . . Time 116 | . 52 . . . . . 64 . . . . . . . . . . . . . . . . . Parts Recycled . | . . . . . . . . . . . . . . . . . . . . . . . . . Recycled Matter . | . . . . . . . . . . . . . . . . . . . . . . . . . Retrieved Matter . | . . . . . . . . . . . . . . . . . . . . . . . . . Retrieved Components 14 | . 4 . . . . . 10 . . . . . . . . . . . . . . . . . Parts Scanalyzed 6 | . . . . . . . 2 . . . . 4 . . . . . . . . . . . . Part Schematics Acquired 6 | . . . . . . . 2 . . . . 4 . . . . . . . . . . . . Parts Damaged . | . . . . . . . . . . . . . . . . . . . . . . . . . Bothacking | -11 -10 -10 -10 -9 -8 -8 -8 -7 -7 -7 -7 -6 -6 -5 -5 -5 -4 -4 -4 -4 -4 -3 -3 -3 ------------ Run | Scr Mat Min Exi Min Mat Gar Mat Fac Gar Fac Gar Fac Gar Fac Was Fac Fac Ext Cet Arc Hub Res Qua Sec Used RIF Installer 4 | . . . . . . 1 . . 1 . 1 . 1 . . . . . . . . . . . Threat Obfuscator 1 | . . . . . . . . . . . 1 . . . . . . . . . . . . . Zone Cloak 1 | . . . . . . . . . 1 . . . . . . . . . . . . . . . Alert ID Control 1 | . . . . . . . . . . . . . 1 . . . . . . . . . . . Robots Hacked 51 | . . . . . . . 8 . 3 4 2 9 8 7 6 3 . 1 . . . . . . Non-combat 14 | . . . . . . . 3 . . 1 . 3 . 4 . 3 . . . . . . . . Combat 37 | . . . . . . . 5 . 3 3 2 6 8 3 6 . . 1 . . . . . . Robot Hacks Applied 59 | . . . . . . . 8 . 4 6 2 10 8 7 10 3 . 1 . . . . . . parse_system 1 | . . . . . . . . . . . . . . . . . . 1 . . . . . . find_chute 3 | . . . . . . . . . . . . 2 . 1 . . . . . . . . . . map_walls 1 | . . . . . . . . . . . . . . 1 . . . . . . . . . . drop_inventory 1 | . . . . . . . . . . . . . . 1 . . . . . . . . . . purge_threat 1 | . . . . . . . 1 . . . . . . . . . . . . . . . . . disarm_traps 1 | . . . . . . . . . . . . . . 1 . . . . . . . . . . map_route 4 | . . . . . . . 1 . . 1 . . . . . 2 . . . . . . . . ignore_targets 10 | . . . . . . . . . . . . . . . 10 . . . . . . . . . find_shortcuts 1 | . . . . . . . . . 1 . . . . . . . . . . . . . . . find_garrison 1 | . . . . . . . . . . 1 . . . . . . . . . . . . . . scatter_targeting 1 | . . . . . . . . . 1 . . . . . . . . . . . . . . . wipe_record 1 | . . . . . . . . . . 1 . . . . . . . . . . . . . . overwrite_iff 19 | . . . . . . . 2 . . . 2 5 7 3 . . . . . . . . . . streamctrl_low 4 | . . . . . . . 1 . . . . 2 . . . 1 . . . . . . . . streamctrl_high 1 | . . . . . . . 1 . . . . . . . . . . . . . . . . . formatsys_high 9 | . . . . . . . 2 . 2 3 . 1 1 . . . . . . . . . . . Relay Couplers Released 47 | . . . . . . 4 . . 12 . 19 . 12 . . . . . . . . . . . Machine Destruction 47 | . . . . . . 4 . . 12 . 19 . 12 . . . . . . . . . . . Attached 18 | . . . . . . . 3 . 2 2 2 3 5 . 1 . . . . . . . . . Robots Rewired 4 | . . . . . . . . . . . . . . . . . . 4 . . . . . . Allies Hacked . | . . . . . . . . . . . . . . . . . . . . . . . . . Hacks Repelled . | . . . . . . . . . . . . . . . . . . . . . . . . . Allies | -11 -10 -10 -10 -9 -8 -8 -8 -7 -7 -7 -7 -6 -6 -5 -5 -5 -4 -4 -4 -4 -4 -3 -3 -3 -------- Run | Scr Mat Min Exi Min Mat Gar Mat Fac Gar Fac Gar Fac Gar Fac Was Fac Fac Ext Cet Arc Hub Res Qua Sec Total Allies 51 | . . 3 . . . . 6 . 2 3 2 7 8 3 . 1 . 15 . . . . 1 . Largest Group 8 | . . 3 1 1 . . 1 . 2 2 2 1 1 1 . 1 . 8 6 5 . . 1 . Highest-Rated Group 339 | . . 40 8 8 . . 16 . 32 32 32 41 41 29 . 10 . 339 261 217 . . 10 . Highest-Rated Ally 156 | . . 16 8 8 . . 16 . 16 32 16 41 41 29 . 10 . 156 49 49 . . 10 . Total Orders 24 | . . . . 2 . . 4 . 1 3 2 4 1 . . 2 . 4 . . . . 1 . STAY 13 | . . . . 1 . . 1 . 1 2 1 1 1 . . 1 . 3 . . . . 1 . ROAM 1 | . . . . . . . . . . . . 1 . . . . . . . . . . . . FOLLOW 4 | . . . . 1 . . . . . 1 1 . . . . . . 1 . . . . . . AID 4 | . . . . . . . 1 . . . . 2 . . . 1 . . . . . . . . EXPLORE 1 | . . . . . . . 1 . . . . . . . . . . . . . . . . . RETURN 1 | . . . . . . . 1 . . . . . . . . . . . . . . . . . Ally Attacks 264 | . . 23 . 1 . . 18 . 12 10 20 24 25 11 . . . 68 41 11 . . . . Total Damage 4616 | . . 187 . 12 . . 211 . 117 170 315 407 490 171 . . . 1475 868 193 . . . . Kills 34 | . . 3 . . . . 1 . . . 2 2 3 . . . . 9 11 3 . . . . Allies Corrupted 1 | . . . . . . . . . . . . . . . . . . . . 1 . . . . Allies Melted . | . . . . . . . . . . . . . . . . . . . . . . . . . Intel | -11 -10 -10 -10 -9 -8 -8 -8 -7 -7 -7 -7 -6 -6 -5 -5 -5 -4 -4 -4 -4 -4 -3 -3 -3 ------- Run | Scr Mat Min Exi Min Mat Gar Mat Fac Gar Fac Gar Fac Gar Fac Was Fac Fac Ext Cet Arc Hub Res Qua Sec Robot Analysis Total 5 | . 2 . . . . . . . . . . . . . . . . 1 2 . . . . . Derelict Logs Recovered 3 | . . 2 . 1 . . . . . . . . . . . . . . . . . . . . Drone Launches 1 | . . . . . . . 1 . . . . . . . . . . . . . . . . . Drone Recoveries . | . . . . . . . . . . . . . . . . . . . . . . . . . Exploration | -11 -10 -10 -10 -9 -8 -8 -8 -7 -7 -7 -7 -6 -6 -5 -5 -5 -4 -4 -4 -4 -4 -3 -3 -3 ------------- Run | Scr Mat Min Exi Min Mat Gar Mat Fac Gar Fac Gar Fac Gar Fac Was Fac Fac Ext Cet Arc Hub Res Qua Sec Turns Passed 33205 | 131 1204 963 460 810 502 981 3478 218 2100 891 2307 1872 1679 935 493 919 515 1856 341 1206 857 1274 3237 3976 Spaces Moved 13506 | 62 573 465 251 437 202 423 1272 84 808 334 894 772 780 419 154 354 182 804 146 176 293 600 1517 1504 Core 2 | 2 . . . . . . . . . . . . . . . . . . . . . . . . Treads 13245 | 60 573 465 251 437 202 423 1272 84 808 334 894 580 713 419 154 354 182 804 146 176 293 600 1517 1504 Legs . | . . . . . . . . . . . . . . . . . . . . . . . . . Wheels 259 | . . . . . . . . . . . . 192 67 . . . . . . . . . . . Hover . | . . . . . . . . . . . . . . . . . . . . . . . . . Flight . | . . . . . . . . . . . . . . . . . . . . . . . . . Fastest Speed 50 | 50 160 160 180 180 200 200 192 220 200 220 200 130 130 180 185 190 190 186 186 186 186 172 172 177 Average Speed 191 | 156 170 167 180 180 200 200 202 220 219 220 216 187 182 182 187 190 193 190 186 186 186 177 173 199 Slowest Speed 280 | 160 180 180 180 180 200 200 280 220 280 220 260 280 200 200 190 190 210 210 230 186 186 186 177 230 Overloaded Moves . | . . . . . . . . . . . . . . . . . . . . . . . . . Propulsion Burnouts . | . . . . . . . . . . . . . . . . . . . . . . . . . Robots Hopped . | . . . . . . . . . . . . . . . . . . . . . . . . . Cave-ins Triggered . | . . . . . . . . . . . . . . . . . . . . . . . . . Exploration Rate (%) 53 | 4 77 83 60 90 18 61 96 2 95 12 98 21 81 13 75 11 6 70 61 90 33 17 96 59 Regions Visited 24 Branch Regions 9 Pre-discovered Areas 2 | . 1 1 . . . . . . . . . . . . . . . . . . . . . . Known Exits Taken 13 | . 1 . . . 1 . . 1 . 1 . 1 . . . 1 1 1 1 1 1 1 1 . Unknown Exits Taken 5 | 1 . 1 1 1 . . 1 . . . . . . . . . . . . . . . . . Scrap Searched 3 | . . 2 . 1 . . . . . . . . . . . . . . . . . . . . Spaces Dug 46 | . . . . . 9 8 2 . 12 . . 3 . . . . 1 6 . . . . 3 2 Terrain Destroyed 1089 | 1 13 . . . 17 42 15 . 118 . 157 3 148 2 5 49 27 88 . 7 189 10 62 136 Melee 20 | . . . . . . . 2 . 6 . . 3 . . . . . 4 . . . . 3 2 Projectile 155 | . . . . . . . . . . . . . 2 2 5 12 27 27 . 7 59 . 10 4 AOE 914 | 1 13 . . . 17 42 13 . 112 . 157 . 146 . . 37 . 57 . . 130 10 49 130 Terrain Rammed . | . . . . . . . . . . . . . . . . . . . . . . . . . Walls Destroyed . | . . . . . . . . . . . . . . . . . . . . . . . . . Machines Disabled . | . . . . . . . . . . . . . . . . . . . . . . . . . Actions | -11 -10 -10 -10 -9 -8 -8 -8 -7 -7 -7 -7 -6 -6 -5 -5 -5 -4 -4 -4 -4 -4 -3 -3 -3 --------- Run | Scr Mat Min Exi Min Mat Gar Mat Fac Gar Fac Gar Fac Gar Fac Was Fac Fac Ext Cet Arc Hub Res Qua Sec Total 18527 | 77 730 585 262 458 254 494 1918 105 1001 463 1133 1042 938 537 288 506 269 998 200 1015 458 750 1952 2094 Wait 1890 | . 82 73 . 3 10 . 328 2 2 82 52 91 12 30 5 25 10 27 9 778 13 32 185 39 Move 13483 | 61 572 464 250 436 201 422 1271 83 807 333 893 771 779 419 153 353 181 803 145 175 292 599 1516 1504 Hop . | . . . . . . . . . . . . . . . . . . . . . . . . . Pick Up 271 | 2 13 3 6 8 7 7 38 2 13 2 13 11 12 11 9 11 4 3 6 6 10 7 24 43 Fast Attach 133 | 6 7 1 . . 2 . 4 . 5 . 5 8 9 2 2 3 4 5 5 1 5 2 17 40 Attach 168 | . 2 4 . . 6 . 13 2 9 2 5 7 4 3 6 1 3 1 . 2 8 14 22 54 Detach 56 | . . . . . . . 3 . 3 . . 3 4 1 1 1 . 1 . 1 4 10 8 16 Swap 493 | . 2 1 2 1 3 14 75 8 38 20 56 37 41 17 7 23 12 31 11 4 25 11 31 23 Drop 277 | . 3 1 4 4 . 4 42 3 13 3 14 11 16 1 2 13 5 8 12 8 15 10 36 49 Fire 1452 | 8 40 33 . 1 22 35 112 5 67 20 77 85 61 34 100 70 50 85 7 15 80 51 81 313 Melee 145 | . . . . . . 5 22 . 28 1 4 3 . . 3 . . 27 5 . . 11 30 6 Ram 1 | . . . . . . . . . . . . . . . . 1 . . . . . . . . Kick . | . . . . . . . . . . . . . . . . . . . . . . . . . Crush 92 | . 9 5 . 5 3 1 9 . . . . 3 . 10 . 5 . 3 . 25 4 3 2 5 Escape Stasis 56 | . . . . . . 6 . . 16 . 14 12 . . . . . 4 . . 2 . . 2 Rewire 10 | . . . . . . . 1 . . . . . . 9 . . . . . . . . . . Trap . | . . . . . . . . . . . . . . . . . . . . . . . . . Miscellaneous . | . . . . . . . . . . . . . . . . . . . . . . . . . Route ------- -11/Scrapyard -10/Materials (discovered 3 exits: [*Mat x2] / *Min) -10/Mines (discovered 2 exits: [*Mat] / *Exi) -10/Exiles -9/Mines (discovered 2 exits: *Mat x2) -8/Materials -8/Garrison (discovered 3 exits: *Mat x3) -8/Materials (discovered 3 exits: *Fac x3) -7/Factory -7/Garrison (discovered 3 exits: *Fac x3) -7/Factory -7/Garrison (discovered 3 exits: *Fac x3) -6/Factory (discovered 2 exits: *Fac / Gar) -6/Garrison (discovered 2 exits: *Fac x2) -5/Factory -5/Waste -5/Factory -4/Factory -4/Extension (discovered 2 exits: *Res / *Cet) -4/Cetus -4/Archives (discovered 3 exits: *Res / *Hub x2) -4/Hub_04(d) (discovered 2 exits: *Res x2) -3/Research (discovered 2 exits: *Res / *Qua) -3/Quarantine (discovered 2 exits: *Res / *Sec) -3/Section 7 (discovered 1 exit: Res) History --------- Turn | Location | Event 60 | -11/Scrapyard | Discovered new exit (range 16) 132 | -11/Scrapyard | Entered Materials 306 | -10/Materials | Build established: Mutant 572 | -10/Materials | Discovered new exit (range 15) 677 | -10/Materials | Identified exit to Mines 677 | -10/Materials | Central database locked down 682 | -10/Materials | Discovered new exit (range 15) 1235 | -10/Materials | Repaired Med. Laser 1263 | -10/Materials | Repaired Lgt. Treads 1336 | -10/Materials | Entered Mines 1356 | -10/Mines | Learned Materials trap positions 1360 | -10/Mines | Assembled infested the area 1363 | -10/Mines | Learned location of Storage (-7) 1366 | -10/Mines | Assisted by a Guerilla fighting off Assembled 1526 | -10/Mines | Core integrity fell below 50% 1567 | -10/Mines | Lost 4 parts (1p1n2w) 1628 | -10/Mines | Core integrity fell below 20% 1666 | -10/Mines | Discovered new exit (range 10) 1786 | -10/Mines | Assisted by bots powering up and referring to "LRC-V3" 1916 | -10/Mines | Learned Materials stockpile data 2208 | -10/Mines | Received a Rocket Launcher from a helpful Derelict 2292 | -10/Mines | Deemed a non-threat by the Exiles lab entrance 2292 | -10/Mines | Discovered new exit (range 5) 2299 | -10/Mines | Entered Exiles 2299 | -10/Exiles | Accompanied by 1 ally 2365 | -10/Exiles | Met 8R-AWN 2394 | -10/Exiles | Met EX-HEX 2446 | -10/Exiles | Met EX-BIN 2468 | -10/Exiles | Aligned with FarCom system 2470 | -10/Exiles | Given EX-Vault access code 2513 | -10/Exiles | Opened EX-Vault 2524 | -10/Exiles | Found Cloak of Protection 2527 | -10/Exiles | Found Longsword +1 2534 | -10/Exiles | Found Supersonic Drone Bay 2573 | -10/Exiles | Warned to stay clear of 0b10 Research branches 2625 | -10/Exiles | Met EX-DEC 2738 | -10/Exiles | Discovered new exit (range 14) 2759 | -10/Exiles | Stole three prototypes: Cloak of Protection, Supersonic Drone Bay, Longsword +1 2759 | -10/Exiles | Entered Mines 2759 | -9/Mines | Accompanied by 1 ally 3013 | -9/Mines | Build established: Hauler-Mutant 3273 | -9/Mines | Discovered new exit (range 12) 3414 | -9/Mines | Discovered new exit (range 8) 3426 | -9/Mines | Learned Materials interactive machine intel 3436 | -9/Mines | Joined a pair of Derelicts in attacking an 0b10 outpost 3569 | -9/Mines | Entered Materials 3569 | -8/Materials | Evolved 4 slots: Utility x3, Weapon x1 3570 | -8/Materials | Loaded intel: 15 trap records 3572 | -8/Materials | Loaded intel: 19 interactive machine locations 3931 | -8/Materials | Garrison activated, responded to threat 4061 | -8/Materials | Identified exit to Garrison 4071 | -8/Materials | Entered Garrison 4143 | -8/Garrison | Triggered checkpoint 4351 | -8/Garrison | Spotted B-75 Beast 4438 | -8/Garrison | Discovered new exit (range 14) 4486 | -8/Garrison | Build established: Hauler-Skirmisher 4548 | -8/Garrison | Triggered checkpoint 4648 | -8/Garrison | Discovered new exit (range 12) 4731 | -8/Garrison | Triggered checkpoint 4841 | -8/Garrison | Discovered new exit (range 15) 4879 | -8/Garrison | Installed Relay Interface Framework 4927 | -8/Garrison | Triggered checkpoint 4973 | -8/Garrison | Garrison Relay disabled 5052 | -8/Garrison | Entered Materials 5315 | -8/Materials | Repaired Nuclear Core 5669 | -8/Materials | Lost 3 parts (1n2w) 5852 | -8/Materials | Repaired Assault Rifle 5905 | -8/Materials | Discovered new exit (range 9) 7451 | -8/Materials | Discovered new exit (range 14) 8493 | -8/Materials | Discovered new exit (range 16) 8530 | -8/Materials | Entered Factory 8530 | -7/Factory | Evolved 2 slots: Utility x2 8532 | -7/Factory | FarCom data flow suspended 8680 | -7/Factory | Garrison activated, responded to threat 8746 | -7/Factory | Identified exit to Garrison 8748 | -7/Factory | Entered Garrison 8809 | -7/Garrison | Triggered checkpoint 9000 | -7/Garrison | Triggered checkpoint 9074 | -7/Garrison | Destroyed 7 combat bots 9077 | -7/Garrison | Lost 5 parts (1p1n2u1w) 9111 | -7/Garrison | Build established: Scavenger-Tank 9236 | -7/Garrison | Discovered new exit (range 14) 9263 | -7/Garrison | Identified exit to Factory 9278 | -7/Garrison | Expanded RIF knowledge: Zone Cloak 9317 | -7/Garrison | Triggered checkpoint 9425 | -7/Garrison | Garrison Relay disabled 9634 | -7/Garrison | Discovered exit to Factory (range 10) 9729 | -7/Garrison | Build established: Bothacker-Mutant 9770 | -7/Garrison | Triggered checkpoint 9884 | -7/Garrison | Garrison Relay disabled 9972 | -7/Garrison | Phase Generator disabled 10202 | -7/Garrison | Discovered exit to Factory (range 5) 10436 | -7/Garrison | Triggered checkpoint 10470 | -7/Garrison | Garrison Relay disabled 10761 | -7/Garrison | Build established: Bothacker-Skirmisher 10848 | -7/Garrison | Entered Factory 11292 | -7/Factory | Build established: Bothacker-Mutant 11694 | -7/Factory | Fabricated Dispersion Rifle (x2) 11737 | -7/Factory | Identified exit to Garrison 11739 | -7/Factory | Entered Garrison 11739 | -7/Garrison | Accompanied by 2 allies 11750 | -7/Garrison | Expanded RIF knowledge: Threat Obfuscation 11822 | -7/Garrison | Triggered checkpoint 11904 | -7/Garrison | Garrison Relay disabled 12175 | -7/Garrison | Triggered checkpoint 12317 | -7/Garrison | Discovered new exit (range 14) 12385 | -7/Garrison | Triggered checkpoint 12464 | -7/Garrison | Garrison Relay disabled 12604 | -7/Garrison | Phase Generator disabled 12733 | -7/Garrison | Core integrity fell below 50% 12902 | -7/Garrison | Triggered checkpoint 13066 | -7/Garrison | Discovered new exit (range 3) 13071 | -7/Garrison | Identified exit to Factory 13229 | -7/Garrison | Garrison Relay disabled 13252 | -7/Garrison | Triggered checkpoint 13528 | -7/Garrison | Triggered checkpoint 13665 | -7/Garrison | Discovered exit to Factory (range 7) 13738 | -7/Garrison | Triggered checkpoint 13814 | -7/Garrison | Garrison Relay disabled 14046 | -7/Garrison | Entered Factory 14046 | -6/Factory | Evolved 2 slots: Propulsion x2 14105 | -6/Factory | Build established: Bothacker-Skirmisher 14535 | -6/Factory | Discovered new exit (range 16) 14560 | -6/Factory | Identified exit to Factory 15762 | -6/Factory | Fabricated Micro-nuke Launcher? 15917 | -6/Factory | Identified exit to Garrison 15918 | -6/Factory | Entered Garrison 15999 | -6/Garrison | Triggered checkpoint 16101 | -6/Garrison | Phase Generator disabled 16130 | -6/Garrison | Garrison Relay disabled 16435 | -6/Garrison | Triggered checkpoint 16437 | -6/Garrison | Triggered checkpoint 16688 | -6/Garrison | Triggered checkpoint 16714 | -6/Garrison | Garrison Relay disabled 16767 | -6/Garrison | Discovered exit to Factory (range 11) 16796 | -6/Garrison | Expanded RIF knowledge: Alert ID Control 17084 | -6/Garrison | Discovered exit to Factory (range 10) 17238 | -6/Garrison | Triggered checkpoint 17241 | -6/Garrison | Garrison Relay disabled 17452 | -6/Garrison | Spotted B-75 Beast 17597 | -6/Garrison | Entered Factory 17597 | -5/Factory | Evolved 2 slots: Utility x2 17767 | -5/Factory | Build established: Botlord-Skirmisher 18532 | -5/Factory | Manually triggered Chute Trap 18532 | -5/Factory | Sucked down chute 18532 | -5/Factory | Entered Waste 18543 | -5/Waste | Spotted C-40 Crusher 18547 | -5/Waste | EMP discharged 18562 | -5/Waste | Spotted C-40 Crusher 18565 | -5/Waste | Spotted C-40 Crusher 18579 | -5/Waste | Spotted C-40 Crusher 18582 | -5/Waste | Spotted C-40 Crusher 18587 | -5/Waste | Crushed by Compactor (1 part destroyed, 1 dropped) 18600 | -5/Waste | Spotted C-40 Crusher 18618 | -5/Waste | Lost 3 parts (1n1u1w) 18647 | -5/Waste | EMP discharged 18647 | -5/Waste | System corruption reached 10% 18747 | -5/Waste | EMP discharged 18825 | -5/Waste | Build established: Bothacker-Mutant 18847 | -5/Waste | EMP discharged 18847 | -5/Waste | System corruption reached 30% 18876 | -5/Waste | Destroyed C-40 Crusher 18942 | -5/Waste | Destroyed C-40 Crusher 18947 | -5/Waste | EMP discharged 18948 | -5/Waste | Found Damper Plating 18954 | -5/Waste | Found Damper Plating 18995 | -5/Waste | Discovered new exit (range 16) 19023 | -5/Waste | Identified exit to Factory 19025 | -5/Waste | Entered Factory 19182 | -5/Factory | Discovered new exit (range 119) 19940 | -5/Factory | Identified exit to Factory 19944 | -5/Factory | Entered another Factory area 19944 | -4/Factory | Evolved 2 slots: Power x1, Utility x1 20166 | -4/Factory | Garrison activated, responded to threat 20450 | -4/Factory | Discovered new exit (range 6) 20456 | -4/Factory | Identified exit to Extension 20459 | -4/Factory | Entered Extension 20806 | -4/Extension | Rescued a captive Derelict 20828 | -4/Extension | Central database locked down 20829 | -4/Extension | Rescued a captive Derelict 20830 | -4/Extension | Rescued a captive Derelict 21100 | -4/Extension | Rescued a captive Derelict 21492 | -4/Extension | Build established: Bothacker-Skirmisher 21629 | -4/Extension | Rescued A7 21681 | -4/Extension | Spotted B-86 Titan 21700 | -4/Extension | Allies destroyed B-86 Titan 21708 | -4/Extension | Spotted B-86 Titan 21726 | -4/Extension | Destroyed B-86 Titan 21749 | -4/Extension | Extracted ID and sensor layout for unrecognized location from A7's data core 22043 | -4/Extension | Rescued a captive Derelict 22045 | -4/Extension | Rescued a captive Derelict 22172 | -4/Extension | Rescued a captive Derelict 22200 | -4/Extension | Rescued a captive Derelict 22200 | -4/Extension | Rescued a captive Derelict 22236 | -4/Extension | Rescued a captive Derelict 22280 | -4/Extension | Discovered new exit (range 10) 22284 | -4/Extension | Discovered new exit (range 6) 22308 | -4/Extension | Identified exit to Cetus 22315 | -4/Extension | Entered Cetus 22315 | -4/Cetus | Accompanied by 6 allies 22339 | -4/Cetus | Spotted Cetus Guard 22339 | -4/Cetus | Spotted Cetus Guard 22342 | -4/Cetus | Allies destroyed Cetus Guard 22343 | -4/Cetus | Spotted Cetus Guard 22349 | -4/Cetus | Spotted Cetus Guard 22350 | -4/Cetus | Allies destroyed Cetus Guard 22356 | -4/Cetus | Allies destroyed Cetus Guard 22363 | -4/Cetus | Allies destroyed Cetus Guard 22619 | -4/Cetus | Discovered new exit (range 16) 22645 | -4/Cetus | Identified exit to Archives 22656 | -4/Cetus | Entered Archives 22656 | -4/Archives | Accompanied by 5 allies 22702 | -4/Archives | Unable to access archive contents 22712 | -4/Archives | Discovered new exit (range 14) 22725 | -4/Archives | Unable to access archive contents 22759 | -4/Archives | Discovered new exit (range 16) 22794 | -4/Archives | Identified exit to Hub_04(d) 23268 | -4/Archives | Build established: Bothacker-Gunner 23763 | -4/Archives | Discovered exit to Hub_04(d) (range 15) 23862 | -4/Archives | Entered Hub_04(d) 23862 | -4/Hub_04(d) | Discovered new exit (range 11) 23892 | -4/Hub_04(d) | Identified exit to Research 24027 | -4/Hub_04(d) | Build established: Bothacker-Skirmisher 24073 | -4/Hub_04(d) | Discovered exit to Research (range 6) 24355 | -4/Hub_04(d) | Network Hub disabled 24377 | -4/Hub_04(d) | Spotted Lightning 24377 | -4/Hub_04(d) | Spotted Lightning 24378 | -4/Hub_04(d) | Spotted Lightning 24379 | -4/Hub_04(d) | Spotted Lightning 24380 | -4/Hub_04(d) | Spotted Lightning 24383 | -4/Hub_04(d) | Spotted Lightning 24447 | -4/Hub_04(d) | Destroyed Lightning 24450 | -4/Hub_04(d) | Destroyed Lightning 24457 | -4/Hub_04(d) | Destroyed Lightning 24463 | -4/Hub_04(d) | Destroyed Lightning 24477 | -4/Hub_04(d) | Destroyed Lightning 24493 | -4/Hub_04(d) | Destroyed Lightning 24514 | -4/Hub_04(d) | Destroyed 7 combat bots 24521 | -4/Hub_04(d) | Found Prototype Energy Cannon 24521 | -4/Hub_04(d) | Identified EMDS 24532 | -4/Hub_04(d) | Garrison activated, responded to threat 24553 | -4/Hub_04(d) | Found EMDS 24566 | -4/Hub_04(d) | Found Prototype Processor 24566 | -4/Hub_04(d) | Identified Exp. Targeting Computer 24573 | -4/Hub_04(d) | Found Prototype Device 24573 | -4/Hub_04(d) | Identified Exp. Phase Shifter 24602 | -4/Hub_04(d) | Found EMDS 24634 | -4/Hub_04(d) | Found Prototype Device 24637 | -4/Hub_04(d) | Identified EM Dispersion Field 24669 | -4/Hub_04(d) | Build established: Bothacker-Gunner 24719 | -4/Hub_04(d) | Entered Research 24719 | -3/Research | Evolved 2 slots: Propulsion x1, Utility x1 25043 | -3/Research | Build established: Bothacker-Mutant 25571 | -3/Research | Discovered new exit (range 7) 25630 | -3/Research | Identified exit to Research 25669 | -3/Research | Spotted B-86 Titan 25703 | -3/Research | Destroyed B-86 Titan 25961 | -3/Research | Found Gamma Bomb Array 25982 | -3/Research | Discovered new exit (range 8) 25991 | -3/Research | Identified exit to Quarantine 25993 | -3/Research | Entered Quarantine 26055 | -3/Quarantine | Found Alien Artifact 26151 | -3/Quarantine | Build established: Scavenger-Mutant 26232 | -3/Quarantine | Found Alien Artifact 26232 | -3/Quarantine | Identified Matter Drive 26345 | -3/Quarantine | Identified Phase Redirector 26385 | -3/Quarantine | Found Alien Artifact 26935 | -3/Quarantine | Discovered exit to Research (range 12) 26998 | -3/Quarantine | Found Alien Energy Cannon 26998 | -3/Quarantine | Identified Core Cannon 27301 | -3/Quarantine | Identified Subatomic Replicator 27331 | -3/Quarantine | Build established: Scavenger-Gunner 27525 | -3/Quarantine | Found Alien Artifact 27525 | -3/Quarantine | Identified Dimensional Node Initializer 27525 | -3/Quarantine | Initialized slip node 27535 | -3/Quarantine | Found Dimensional Node Initializer 27544 | -3/Quarantine | Found Alien Artifact 27551 | -3/Quarantine | Found Alien Artifact 27612 | -3/Quarantine | Found Alien Impact Weapon 27612 | -3/Quarantine | Identified Core Stripper 27774 | -3/Quarantine | Build established: Scavenger-Mutant 27873 | -3/Quarantine | Identified Transdimensional Reconstructor 27873 | -3/Quarantine | Identified Hpw. Transdimensional Reconstructor 28531 | -3/Quarantine | Found Alien Artifact 28817 | -3/Quarantine | Build established: Scavenger-Gunner 29067 | -3/Quarantine | Spotted Fortress 29079 | -3/Quarantine | Destroyed Fortress 29089 | -3/Quarantine | Found Prototype Protection 29089 | -3/Quarantine | Identified Centrium Heavy Armor Plating 29218 | -3/Quarantine | Discovered new exit (range 6) 29225 | -3/Quarantine | Identified exit to Section 7 29230 | -3/Quarantine | Entered Section 7 29244 | -3/Section 7 | Spotted S7 Guard 29268 | -3/Section 7 | Destroyed S7 Guard 29317 | -3/Section 7 | Found Alien Artifact 29317 | -3/Section 7 | Identified Core Regenerator 29317 | -3/Section 7 | Used Core Regenerator, restored core integrity (+295) 29527 | -3/Section 7 | Build established: Hauler-Mutant 29745 | -3/Section 7 | Found Alien Artifact 29840 | -3/Section 7 | Identified Core Reset Matrix 29840 | -3/Section 7 | Identified Integrated Reactor 29840 | -3/Section 7 | Installed Integrated Reactor, increased core energy generation (+10) 29964 | -3/Section 7 | System corruption reached 10% 30345 | -3/Section 7 | Lost 5 parts (1p2u2w) 31076 | -3/Section 7 | Found Alien Artifact 31095 | -3/Section 7 | Build established: Scavenger-Mutant 31170 | -3/Section 7 | Identified Integrity Redistributor 31258 | -3/Section 7 | Found Integrity Redistributor 31258 | -3/Section 7 | Used Integrity Redistributor, redistributed integrity from core (-439) 31360 | -3/Section 7 | Found Integrity Redistributor 31628 | -3/Section 7 | Spotted S7 Guard 31680 | -3/Section 7 | Core integrity fell below 50% 31845 | -3/Section 7 | Destroyed 7 combat bots 31930 | -3/Section 7 | Destroyed S7 Guard 31959 | -3/Section 7 | Found Alien Artifact 31959 | -3/Section 7 | Identified Integrated Heat Negator 31959 | -3/Section 7 | Installed Integrated Heat Negator, increased core heat dissipation (+40) 31980 | -3/Section 7 | First assault squad dispatched 32118 | -3/Section 7 | Lost 3 parts (1u2w) 32182 | -3/Section 7 | Used Integrity Redistributor, redistributed integrity to core (+218) 32183 | -3/Section 7 | Used Integrity Redistributor, redistributed integrity from core (-437) 32235 | -3/Section 7 | Destroyed 9 combat bots 32240 | -3/Section 7 | Spotted B-86 Titan 32258 | -3/Section 7 | Destroyed B-86 Titan 32375 | -3/Section 7 | Core integrity fell below 20% 32380 | -3/Section 7 | Scanned by Researcher 32381 | -3/Section 7 | Intercept squad dispatched 32385 | -3/Section 7 | Spotted Tracker 32388 | -3/Section 7 | Destroyed Tracker 32399 | -3/Section 7 | Spotted Combat Programmer 32418 | -3/Section 7 | Destroyed Combat Programmer 32424 | -3/Section 7 | Found EMDS 32433 | -3/Section 7 | Spotted Alpha 7 32469 | -3/Section 7 | Destroyed Alpha 7 32546 | -3/Section 7 | Lost 3 parts (1n1u1w) 32568 | -3/Section 7 | Destroyed 17 combat bots 32569 | -3/Section 7 | Spotted Alpha 7 32613 | -3/Section 7 | Destroyed Alpha 7 32639 | -3/Section 7 | Lost 4 parts (2p1n1u) 32745 | -3/Section 7 | Spotted B-99 Colossus 32857 | -3/Section 7 | Found Alien Artifact 32857 | -3/Section 7 | Identified Integrated Dissipator 32857 | -3/Section 7 | Installed Integrated Dissipator, increased core heat dissipation (+20) 32934 | -3/Section 7 | Found Alien Artifact 32934 | -3/Section 7 | Identified LRC Matter Compressor 32934 | -3/Section 7 | Installed LRC Matter Compressor, increased matter storage capacity (+125) 32938 | -3/Section 7 | Found Alien Artifact 32938 | -3/Section 7 | Identified LRC Energy Well 32938 | -3/Section 7 | Installed LRC Energy Well, increased energy storage capacity (+250) 33110 | -3/Section 7 | Found Integrated Reactor 33110 | -3/Section 7 | Installed Integrated Reactor, increased core energy generation (+10) 33114 | -3/Section 7 | Found Integrated Reactor 33114 | -3/Section 7 | Installed Integrated Reactor, increased core energy generation (+10) 33117 | -3/Section 7 | Found Integrated Reactor 33117 | -3/Section 7 | Installed Integrated Reactor, increased core energy generation (+10) 33195 | -3/Section 7 | Intercept squad dispatched 33203 | -3/Section 7 | Spotted Tracker 33204 | -3/Section 7 | Spotted Tracker 33206 | -3/Section 7 | Destroyed by B-99 Colossus with Multirail Last Messages --------------- 33137_ EMDS Slug penetrates Q979-a. 33138_ Centrium Medium Armor Plating destroyed. 33139_ EMDS Slug penetrates Q979-a. 33143_ Med. Treads destroyed. 33143_ EMDS Slug penetrates Q979-a. 33143_ Destroyed Prototype Launcher. 33145_ System corrupted: EMDS failed to cycle. 33152_ System corrupted: Heat flow error (+275). 33175_ System corrupted: Matter fused (-9). 33191_ System corrupted: Substantial component data lost. 33195_ ALERT: LRC-V3 signature pinpointed, intercept squad dispatched. Tracker: "THREAT CONFIRMED. DEPLOY COMBAT PROGRAMMER." 33204_ Critical hit. 33205_ Dropped Gamma Bomb Array. 33205_ B-99 Colossus springs to life. 33206_ Construction Supplies damaged. 33206_ System corrupted: Micro-nuke Launcher targeting data glitched. 33206_ Med. Treads destroyed. 33206_ Centrium Medium Armor Plating destroyed. 33206_ Penetrated by Slug. Map ----- +----------------------------------------------------+ | ?????????????????????????????????????????????????? | | ?????????????????????????????????????????????????? | | ?????????????????????????????????????????????????? | | ?????????????????????????????????????????????????? | | ?? ??????????????????????????????????????????????? | | ? ??????????????????????????????????????????? | | ?????????????????????????????????????????? | | ??????????????????????????????????????????? | | "??????????????????????????????????????????? | | "??????????????????????????????????????????? | | """" ??? ??????????????????????????????????? | | ???? ""???????????????????????????????? | | " ?????? ??"??????????????????????????? | | " "??????? " "????????? ??????????????? | | " "????""" "" ????"""""" ????????????? | | """""" ???? ????????????? | | c ""?"" ???????????? | | "" ???????????? | | " ??????????? | | ???????????? | | ????????????? | | " s ???????????? | | " s ???????????? | | " ?????????????? | | k ??????????????? | | @""""""?????????????????? | | """""""""""" ###""""?????????????????? | | """""""""""" BB #???????????????????????? | | ##################BB###+/#???????????????????????? | | ?????????????????# #?# #???????????????????????? | | ?????????????????####?# #???????????????????????? | | ??????????????????????# #???????????????????????? | | ??????????????????????# #??################?????? | | ??????????????????????# #??#"""""" """""#????? | | ??????????????????????# #??#"""""" """""#????? | | ??????????????????????# #??#"""""" "#????? | | ???????????############ #### " """""#????? | | ???????????# """""#????? | | ???????????# """""#????? | | ???????????# ###############" """"#????? | | ???????##### #?????????????#"" "#????? | | ????#### # #####?????????#" " "#????? | | ????#" " "#?????????#"""""""" "" "#????? | | ????#" "#?????????######### # ####????? | | ????#" "#?????????????????# ###???????? | | ????#"""" ""#?????????????????# #?????????? | | ????#""""" """#?????????????????# #?????????? | | ????#""""" ""#?????????????????# #?????????? | | ????#""""" " "#??##############?# #?????????? | | ????#" = """"#?#"""""""""""""#?# #?????????? | +----------------------------------------------------+ Best States ------------- Heat Dissipation 124 Coolant Potential 80 Energy Generation 87 Energy Capacity 840 Matter Stores 300 Matter Capacity 425 Sight Range 16 Robot Scan Range 20 Terrain Scan Density 10 Cloak Strength 5 EM Shielding 2 Armor Coverage 2400 Resistance: TH 30 Resistance: EM 90 Weapon Shielding 90 Weapon Cycling 20 Evasion (%) 40 Targeting Accuracy 20 Target Analysis 8 Recoil Reduction 5 Offensive Hacking 10 Relay Coupler Types 79 Relay Coupler Value 3 Item Schematics ----------------- Cmb. Airjet | -8/Materials | Scanalyzed Nuclear Core | -8/Materials | Scanalyzed Micro-nuke Launcher | -6/Factory | Hacked Coil Gun | -6/Factory | Scanalyzed Shock Bomb Launcher | -6/Factory | Scanalyzed Hcp. Storage Unit | -6/Factory | Scanalyzed Hrd. Medium Armor Plating | -6/Factory | Scanalyzed Hvy. Phase Cannon | -6/Factory | Hacked Adv. Cooling System | -5/Factory | Hacked Adv. Heavy Siege Treads | -3/Section 7 | Hacked Robot Schematics ------------------ None Fabricated ------------ Dispersion Rifle | x2 | -7/Factory | Preloaded Micro-nuke Launcher | x1 | -6/Factory Alien Tech Used ----------------- Matter Drive Phase Redirector Core Cannon Dimensional Node Initializer Core Stripper Core Regenerator Integrated Reactor Integrity Redistributor Integrated Heat Negator Integrated Dissipator LRC Matter Compressor LRC Energy Well Achievements -------------- Packrat Sunderer Wheee! Challenges ------------ None Game ------ Seed LobotomyLightpackRailgun Manual? 0 Play Time 05:03:57 Cumulative 115.8 hours Start 2020.10.24 @ 08:53:57 End 2020.10.24 @ 14:04:16 Sessions 1 Manual Loads 0 Difficulty Rogue Special Mode None Game No. 38 Rogue 23 Adventurer 15 Explorer 0 Win Type - Total 3 Types 1/0/1/1/0/0/0/0/0 Lore% 74 Gallery% 72 Achievement% 60 Wizard Run 0 Options --------- ASCII 0 Keyboard 0 Movement Numpad Keybinds 0 Fullscreen 1 Font 18/SmallcapsGlow Map View 76x50 Tactical HUD 1 Map Filters NONE Filters NONE Steam 1 RUN: 1b093f73-97a0-4986-8a05-d26cbf39075c